fUST/lending_fUST_20250610
["ID","MTS","AMOUNT","RATE_DAILY","PERIOD"]
[365230575,1749558637206,-903.98,0.00021369,4]
[365230577,1749558637216,-460.0,0.00021369,4]
[365230579,1749558637226,-460.0,0.00021369,4]
[365230581,1749558637236,-400.0,0.00021369,4]
[365230583,1749558637245,-460.0,0.00021369,4]
[365230585,1749558637255,-542.16780769,0.00021369,4]
[365230587,1749558637267,-460.0,0.00021369,4]
[365230589,1749558637277,-364.39754856,0.00021369,4]
[365230591,1749558637286,-460.0,0.00021369,4]
[365230593,1749558637296,-460.0,0.00021369,4]
[365230595,1749558637311,-2820.8,0.00021369,4]
[365230597,1749558637321,-350.0,0.00021369,2]
[365230599,1749558637331,-1394.38,0.00021369,4]
[365230601,1749558637342,-460.0,0.00021369,4]
[365230603,1749558637351,-390.0,0.00021369,4]
[365230605,1749558637360,-460.0,0.00021369,4]
[365230607,1749558637370,-460.0,0.00021369,4]
[365230609,1749558637379,-460.0,0.00021369,4]
[365230611,1749558637389,-460.0,0.00021369,4]
[365230613,1749558637398,-460.0,0.00021369,4]
[365230615,1749558637407,-460.0,0.00021369,4]
[365230617,1749558637416,-151.0,0.00021369,2]
[365230619,1749558637426,-151.0,0.00021369,2]
[365230621,1749558637435,-151.0,0.00021369,2]
[365230623,1749558637444,-151.0,0.00021369,2]
[365230625,1749558637454,-151.0,0.00021369,2]
[365230627,1749558637464,-151.0,0.00021369,2]
[365230629,1749558637473,-151.0,0.00021369,2]
[365230631,1749558637482,-151.0,0.00021369,2]
[365230633,1749558637492,-254.528299,0.00021369,2]
[365230635,1749558637501,-254.528299,0.00021369,2]
[365230637,1749558637511,-450.176961,0.00021369,2]
[365230639,1749558637522,-450.176961,0.00021369,2]
[365230641,1749558637532,-450.176961,0.00021369,2]
[365230643,1749558637542,-450.176961,0.00021369,2]
[365230645,1749558637552,-847.418324,0.00021369,2]
[365230647,1749558637562,-847.418324,0.00021369,2]
[365230649,1749558637572,-847.418324,0.00021369,2]
[365230651,1749558637582,-847.418324,0.00021369,2]
[365230653,1749558637592,-379.42299405,0.00021369,4]
[365230655,1749558637603,-460.0,0.00021369,4]
[365230657,1749558637614,-460.0,0.00021369,4]
[365230659,1749558637624,-992.29,0.00021369,4]
[365230661,1749558637634,-460.0,0.00021369,4]
[365230663,1749558637644,-151.0,0.00021369,2]
[365230665,1749558637653,-151.0,0.00021369,2]
[365230667,1749558637663,-151.0,0.00021369,2]
[365230669,1749558637673,-151.0,0.00021369,2]
[365230671,1749558637682,-151.0,0.00021369,2]
[365230673,1749558637692,-151.0,0.00021369,2]
[365230675,1749558637701,-460.0,0.00021369,4]
[365230677,1749558637711,-445.12610633,0.00021369,4]
[365230679,1749558637720,-340.0,0.00021369,4]
[365230681,1749558637729,-460.0,0.00021369,4]
[365230683,1749558637739,-460.0,0.00021369,4]
[365230685,1749558637748,-3345.9,0.00021369,4]
[365230687,1749558637758,-2608.83,0.00021369,4]
[365230689,1749558637768,-151.0,0.00021369,2]
[365230691,1749558637777,-151.0,0.00021369,2]
[365230693,1749558637787,-151.0,0.00021369,2]
[365230695,1749558637797,-3150.63,0.00021369,4]
[365230697,1749558637807,-460.0,0.00021369,4]
[365230699,1749558637817,-435.30784695,0.00021369,4]
[365230701,1749558637827,-461.14,0.00021369,4]
[365230703,1749558637836,-460.0,0.00021369,4]
[365230706,1749558637846,-460.0,0.00021369,4]
[365230708,1749558637856,-1994.97,0.00021369,4]
[365230710,1749558637865,-460.0,0.00021369,4]
[365230712,1749558637875,-460.0,0.00021369,4]
[365230714,1749558637888,-278.1015585,0.00021369,4]
[365230716,1749558637898,-394.46301175,0.00021369,4]
[365230718,1749558637907,-460.0,0.00021369,4]
[365230720,1749558637915,-460.0,0.00021369,4]
[365230722,1749558637926,-1966.91,0.00021369,4]
[365230724,1749558637935,-358.50866205,0.00021369,4]
[365230726,1749558637945,-154.59826496,0.00021369,4]
[365230728,1749558637955,-2759.7,0.00021369,4]
[365230730,1749558637966,-460.0,0.00021369,4]
[365230731,1749558637977,-254.863323,0.00021369,2]
[365230732,1749558637986,-154.724936,0.00021369,2]
[365230733,1749558637996,-460.0,0.00021369,4]
[365230735,1749558638005,-350.0,0.00021369,4]
[365230737,1749558638015,-460.0,0.00021369,4]
[365230739,1749558638024,-460.0,0.00021369,4]
[365230741,1749558638034,-290.4258192,0.00021369,4]
[365230743,1749558638045,-460.0,0.00021369,4]
[365230745,1749558638055,-460.0,0.00021369,4]
[365230747,1749558638064,-500.0,0.00021369,4]
[365230749,1749558638074,-500.0,0.00021396,2]
[365230751,1749558638084,-504.2284594,0.000214,2]
[365230753,1749558638093,-500.0,0.000214,2]
[365230755,1749558638103,-500.0,0.000214,2]
[365230757,1749558638113,-500.0,0.000214,2]
[365230759,1749558638122,-500.0,0.000214,2]
[365230770,1749558638216,-500.0,0.000214,2]
[365230772,1749558638227,-3644.21950386,0.00021406,2]
[365230774,1749558638237,-229.385573,0.00021406,2]
[365230776,1749558638247,-1680.0,0.00021445,2]
[365230778,1749558638258,-1726.53400946,0.00021452,5]
[365230780,1749558638268,-500.0,0.00021463,2]
[365230782,1749558638278,-215.86167814,0.00021546,2]
[365230784,1749558638289,-501.55391125,0.00021546,2]
[365230786,1749558638298,-500.0,0.00021546,2]
[365230788,1749558638308,-500.0,0.00021546,2]
[365230790,1749558638319,-500.0,0.00021546,2]
[365230792,1749558638328,-500.0,0.00021562,2]
[365230794,1749558638337,-500.0,0.00021562,2]
[365230797,1749558638347,-504.55797714,0.00021562,2]
[365230799,1749558638357,-179.33434595,0.00021562,2]
[365230801,1749558638367,-189.06396909,0.00021562,2]
[365230803,1749558638377,-502.58968167,0.00021562,2]
[365230805,1749558638387,-500.0,0.00021562,2]
[365230807,1749558638396,-1726.53400946,0.0002159,5]
[365230809,1749558638405,-522.9,0.00021642,3]
[365230811,1749558638415,-460.0,0.00021643,4]
[365230813,1749558638425,-460.0,0.00021643,4]
[365230815,1749558638434,-460.0,0.00021643,4]
[365230817,1749558638446,-483.05177797,0.00021643,4]
[365230819,1749558638455,-460.0,0.00021643,4]
[365230821,1749558638465,-210.06070505,0.00021643,4]
[365230823,1749558638475,-460.0,0.00021643,4]
[365230825,1749558638484,-723.09,0.00021643,4]
[365230827,1749558638494,-460.0,0.00021643,4]
[365230829,1749558638503,-460.0,0.00021643,4]
[365230831,1749558638513,-460.0,0.00021643,4]
[365230833,1749558638523,-460.0,0.00021643,4]
[365230835,1749558638534,-370.0,0.00021643,4]
[365230837,1749558638543,-460.0,0.00021643,4]
[365230839,1749558638552,-2883.13,0.00021643,4]
[365230841,1749558638562,-460.0,0.00021643,4]
[365230843,1749558638571,-500.0,0.00021643,4]
[365230845,1749558638581,-460.0,0.00021643,4]
[365230847,1749558638590,-460.0,0.00021643,4]
[365230849,1749558638600,-460.0,0.00021643,4]
[365230851,1749558638609,-344.864,0.00021643,4]
[365230853,1749558638619,-460.0,0.00021643,4]
[365230855,1749558638629,-470.19,0.00021643,4]
[365230857,1749558638638,-460.0,0.00021643,4]
[365230859,1749558638647,-460.0,0.00021643,4]
[365230861,1749558638658,-460.0,0.00021643,4]
[365230863,1749558638669,-460.0,0.00021643,4]
[365230865,1749558638678,-460.0,0.00021643,4]
[365230867,1749558638688,-460.0,0.00021643,4]
[365230869,1749558638697,-460.0,0.00021643,4]
[365230871,1749558638707,-460.0,0.00021643,4]
[365230873,1749558638717,-460.0,0.00021643,4]
[365230876,1749558638727,-460.0,0.00021643,4]
[365230878,1749558638736,-460.0,0.00021643,4]
[365230879,1749558638746,-460.0,0.00021643,4]
[365230882,1749558638756,-330.0,0.00021643,4]
[365230884,1749558638765,-460.0,0.00021643,4]
[365230886,1749558638774,-460.0,0.00021643,4]
[365230888,1749558638784,-460.0,0.00021643,4]
[365230891,1749558638794,-460.0,0.00021643,4]
[365230894,1749558638803,-460.0,0.00021643,4]
[365230895,1749558638812,-460.0,0.00021643,4]
[365230898,1749558638822,-460.0,0.00021643,4]
[365230899,1749558638832,-460.0,0.00021643,4]
[365230902,1749558638841,-460.0,0.00021643,4]
[365230903,1749558638851,-350.0,0.00021643,4]
[365230905,1749558638861,-460.0,0.00021643,4]
[365230907,1749558638870,-563.69648315,0.00021643,4]
[365230910,1749558638883,-460.0,0.00021643,4]
[365230912,1749558638892,-460.0,0.00021643,4]
[365230914,1749558638902,-1271.1,0.00021643,4]
[365230916,1749558638911,-494.89470438,0.00021643,4]
[365230917,1749558638921,-460.0,0.00021643,4]
[365230919,1749558638930,-460.0,0.00021643,4]
[365230921,1749558638939,-460.0,0.00021643,4]
[365230923,1749558638948,-309.65694276,0.00021643,4]
[365230926,1749558638960,-460.0,0.00021643,4]
[365230927,1749558638969,-460.0,0.00021643,4]
[365230930,1749558638979,-460.0,0.00021643,4]
[365230932,1749558638989,-460.0,0.00021643,4]
[365230934,1749558638998,-460.0,0.00021643,4]
[365230936,1749558639008,-460.0,0.00021643,4]
[365230938,1749558639018,-460.0,0.00021643,4]
[365230940,1749558639027,-460.0,0.00021643,4]
[365230942,1749558639036,-460.0,0.00021643,4]
[365230944,1749558639046,-410.0,0.00021643,4]
[365230946,1749558639055,-460.0,0.00021643,4]
[365230948,1749558639066,-460.0,0.00021643,4]
[365230950,1749558639075,-460.0,0.00021643,4]
[365230952,1749558639084,-460.0,0.00021643,4]
[365230954,1749558639093,-460.0,0.00021643,4]
[365230956,1749558639103,-460.0,0.00021643,4]
[365230958,1749558639112,-502.59195497,0.00021643,4]
[365230960,1749558639122,-460.0,0.00021643,4]
[365230962,1749558639132,-460.0,0.00021643,4]
[365230964,1749558639140,-460.0,0.00021643,4]
[365230966,1749558639150,-460.0,0.00021643,4]
[365230968,1749558639159,-460.0,0.00021643,4]
[365230970,1749558639169,-1151.52,0.00021643,4]
[365230972,1749558639178,-311.12835272,0.00021643,4]
[365230974,1749558639188,-460.0,0.00021643,4]
[365230976,1749558639197,-460.0,0.00021643,4]
[365230978,1749558639206,-460.0,0.00021643,4]
[365230980,1749558639216,-460.0,0.00021643,4]
[365230982,1749558639225,-460.0,0.00021643,4]
[365230984,1749558639235,-460.0,0.00021643,4]
[365230986,1749558639245,-460.0,0.00021643,4]
[365230988,1749558639255,-380.0,0.00021643,4]
[365230990,1749558639265,-460.0,0.00021643,4]
[365230992,1749558639275,-460.0,0.00021643,4]
[365230993,1749558639285,-632.11,0.00021643,4]
[365230995,1749558639294,-460.0,0.00021643,4]
[365230997,1749558639304,-903.98,0.00021643,4]
[365231000,1749558639315,-460.0,0.00021643,4]
[365231002,1749558639325,-460.0,0.00021643,4]
[365231004,1749558639335,-460.0,0.00021643,4]
[365231006,1749558639345,-460.0,0.00021643,4]
[365231008,1749558639355,-460.0,0.00021643,4]
[365231010,1749558639364,-460.0,0.00021643,4]
[365231012,1749558639374,-2820.8,0.00021643,4]
[365231014,1749558639383,-350.0,0.00021643,2]
[365231016,1749558639392,-1394.38,0.00021643,4]
[365231018,1749558639401,-460.0,0.00021643,4]
[365231020,1749558639411,-460.0,0.00021643,4]
[365231022,1749558639421,-460.0,0.00021643,4]
[365231024,1749558639431,-460.0,0.00021643,4]
[365231026,1749558639441,-460.0,0.00021643,4]
[365231028,1749558639450,-460.0,0.00021643,4]
[365231030,1749558639459,-460.0,0.00021643,4]
[365231032,1749558639468,-151.0,0.00021643,2]
[365231033,1749558639478,-192.526301,0.00021643,2]
[365231036,1749558639488,-151.0,0.00021643,2]
[365231038,1749558639497,-166.828364,0.00021643,2]
[365231040,1749558639507,-151.0,0.00021643,2]
[365231042,1749558639518,-151.0,0.00021643,2]
[365231044,1749558639527,-151.0,0.00021643,2]
[365231046,1749558639542,-151.0,0.00021643,2]
[365231049,1749558639555,-254.528299,0.00021643,2]
[365231051,1749558639565,-254.528299,0.00021643,2]
[365231053,1749558639575,-450.176961,0.00021643,2]
[365231055,1749558639585,-450.176961,0.00021643,2]
[365231057,1749558639596,-450.176961,0.00021643,2]
[365231059,1749558639606,-450.176961,0.00021643,2]
[365231061,1749558639616,-847.418324,0.00021643,2]
[365231063,1749558639626,-847.418324,0.00021643,2]
[365231065,1749558639636,-847.418324,0.00021643,2]
[365231067,1749558639646,-847.418324,0.00021643,2]
[365231069,1749558639656,-460.0,0.00021643,4]
[365231071,1749558639666,-460.0,0.00021643,4]
[365231073,1749558639676,-992.29,0.00021643,4]
[365231075,1749558639685,-460.0,0.00021643,4]
[365231077,1749558639695,-151.0,0.00021643,2]
[365231079,1749558639705,-151.0,0.00021643,2]
[365231081,1749558639714,-151.0,0.00021643,2]
[365231083,1749558639724,-156.380674,0.00021643,2]
[365231085,1749558639733,-151.0,0.00021643,2]
[365231087,1749558639743,-151.0,0.00021643,2]
[365231089,1749558639753,-460.0,0.00021643,4]
[365231091,1749558639762,-460.0,0.00021643,4]
[365231093,1749558639772,-390.0,0.00021643,4]
[365231095,1749558639782,-3345.9,0.00021643,4]
[365231097,1749558639791,-2608.83,0.00021643,4]
[365231099,1749558639802,-3150.63,0.00021643,4]
[365231101,1749558639811,-460.0,0.00021643,4]
[365231103,1749558639821,-461.14,0.00021643,4]
[365231105,1749558639831,-460.0,0.00021643,4]
[365231107,1749558639841,-460.0,0.00021643,4]
[365231109,1749558639851,-1994.97,0.00021643,4]
[365231111,1749558639861,-460.0,0.00021643,4]
[365231113,1749558639871,-460.0,0.00021643,4]
[365231115,1749558639884,-467.63044643,0.00021643,4]
[365231117,1749558639894,-460.0,0.00021643,4]
[365231119,1749558639904,-1966.91,0.00021643,4]
[365231122,1749558639914,-2759.7,0.00021643,4]
[365231123,1749558639924,-460.0,0.00021643,4]
[365231124,1749558639933,-291.22498842,0.00021643,4]
[365231125,1749558639943,-503.6335724,0.00021643,4]
[365231126,1749558639952,-460.0,0.00021643,4]
[365231127,1749558639964,-209.2549146,0.00021643,4]
[365231128,1749558639973,-460.0,0.00021643,4]
[365231129,1749558639983,-500.0,0.00021643,4]
[365231130,1749558639992,-1000.0,0.00021723,2]
[365231131,1749558640008,-1000.0,0.00021723,2]
[365231132,1749558640018,-1726.53400946,0.00021728,5]
[365231133,1749558640028,-5148.54,0.0002179,2]
[365231134,1749558640037,-3644.21950386,0.00021817,2]
[365231135,1749558640047,-159.638082,0.00021852,2]
[365231136,1749558640057,-1726.53400946,0.00021866,6]
[365231137,1749558640066,-500.0,0.00021917,4]
[365231139,1749558640075,-460.0,0.00021917,4]
[365231142,1749558640199,-460.0,0.00021917,4]
[365231143,1749558640209,-460.0,0.00021917,4]
[365231144,1749558640218,-723.09,0.00021917,4]
[365231145,1749558640228,-260.0,0.00021917,4]
[365231146,1749558640237,-460.0,0.00021917,4]
[365231147,1749558640247,-380.0,0.00021917,4]
[365231148,1749558640257,-460.0,0.00021917,4]
[365231149,1749558640266,-460.0,0.00021917,4]
[365231150,1749558640276,-2883.13,0.00021917,4]
[365231151,1749558640286,-460.0,0.00021917,4]
[365231152,1749558640295,-589.28494512,0.00021917,4]
[365231153,1749558640305,-460.0,0.00021917,4]
[365231154,1749558640315,-350.0,0.00021917,4]
[365231155,1749558640324,-460.0,0.00021917,4]
[365231156,1749558640334,-460.0,0.00021917,4]
[365231157,1749558640343,-470.19,0.00021917,4]
[365231158,1749558640352,-460.0,0.00021917,4]
[365231159,1749558640362,-460.0,0.00021917,4]
[365231160,1749558640371,-460.0,0.00021917,4]
[365231161,1749558640381,-460.0,0.00021917,4]
[365231162,1749558640390,-460.0,0.00021917,4]
[365231163,1749558640400,-460.0,0.00021917,4]
[365231164,1749558640409,-460.0,0.00021917,4]
[365231165,1749558640420,-460.0,0.00021917,4]
[365231166,1749558640429,-315.53304487,0.00021917,4]
[365231167,1749558640439,-460.0,0.00021917,4]
[365231168,1749558640448,-460.0,0.00021917,4]
[365231169,1749558640457,-460.0,0.00021917,4]
[365231170,1749558640467,-460.0,0.00021917,4]
[365231171,1749558640477,-290.96006452,0.00021917,4]
[365231172,1749558640486,-460.0,0.00021917,4]
[365231173,1749558640495,-460.0,0.00021917,4]
[365231174,1749558640505,-332.00097275,0.00021917,4]
[365231175,1749558640514,-460.0,0.00021917,4]
[365231176,1749558640524,-460.0,0.00021917,4]
[365231177,1749558640533,-460.0,0.00021917,4]
[365231178,1749558640543,-386.13542092,0.00021917,4]
[365231179,1749558640552,-460.0,0.00021917,4]
[365231180,1749558640561,-425.07907724,0.00021917,4]
[365231181,1749558640570,-313.0829258,0.00021917,4]
[365231182,1749558640583,-1271.1,0.00021917,4]
[365231183,1749558640593,-460.0,0.00021917,4]
[365231184,1749558640602,-460.0,0.00021917,4]
[365231185,1749558640611,-460.0,0.00021917,4]
[365231186,1749558640621,-460.0,0.00021917,4]
[365231187,1749558640630,-460.0,0.00021917,4]
[365231188,1749558640640,-460.0,0.00021917,4]
[365231189,1749558640649,-460.0,0.00021917,4]
[365231190,1749558640658,-505.0716492,0.00021917,2]
[365231191,1749558640667,-256.0,0.00021917,4]
[365231193,1749558640677,-330.0,0.00021917,4]
[365231195,1749558640686,-460.0,0.00021917,4]
[365231197,1749558640696,-460.0,0.00021917,4]
[365231199,1749558640706,-316.13563918,0.00021917,4]
[365231201,1749558640716,-460.0,0.00021917,4]
[365231203,1749558640725,-460.0,0.00021917,4]
[365231205,1749558640735,-460.0,0.00021917,4]
[365231207,1749558640744,-460.0,0.00021917,4]
[365231209,1749558640754,-460.0,0.00021917,4]
[365231211,1749558640764,-460.0,0.00021917,4]
[365231213,1749558640773,-460.0,0.00021917,4]
[365231214,1749558640783,-460.0,0.00021917,4]
[365231216,1749558640792,-460.0,0.00021917,4]
[365231217,1749558640802,-521.07779901,0.00021917,4]
[365231218,1749558640811,-460.0,0.00021917,4]
[365231219,1749558640821,-1151.52,0.00021917,4]
[365231220,1749558640831,-460.0,0.00021917,4]
[365231221,1749558640841,-460.0,0.00021917,4]
[365231222,1749558640851,-460.0,0.00021917,4]
[365231223,1749558640861,-460.0,0.00021917,4]
[365231224,1749558640871,-460.0,0.00021917,4]
[365231225,1749558640885,-460.0,0.00021917,4]
[365231227,1749558640895,-235.55397468,0.00021917,4]
[365231229,1749558640905,-460.0,0.00021917,4]
[365231231,1749558640914,-460.0,0.00021917,4]
[365231233,1749558640924,-632.11,0.00021917,4]
[365231235,1749558640933,-460.0,0.00021917,4]
[365231236,1749558640943,-903.98,0.00021917,4]
[365231238,1749558640953,-460.0,0.00021917,4]
[365231240,1749558640964,-460.0,0.00021917,4]
[365231242,1749558640974,-460.0,0.00021917,4]
[365231244,1749558640984,-290.0,0.00021917,4]
[365231246,1749558640993,-2820.8,0.00021917,4]
[365231248,1749558641003,-350.0,0.00021917,2]
[365231250,1749558641013,-1394.38,0.00021917,4]
[365231252,1749558641024,-460.0,0.00021917,4]
[365231254,1749558641034,-460.0,0.00021917,4]
[365231256,1749558641044,-460.0,0.00021917,4]
[365231259,1749558641054,-162.20404482,0.00021917,4]
[365231260,1749558641064,-460.0,0.00021917,4]
[365231262,1749558641074,-460.0,0.00021917,4]
[365231264,1749558641084,-460.0,0.00021917,4]
[365231266,1749558641093,-151.0,0.00021917,2]
[365231268,1749558641103,-151.0,0.00021917,2]
[365231270,1749558641112,-258.171393,0.00021917,2]
[365231272,1749558641121,-254.528299,0.00021917,2]
[365231274,1749558641131,-254.528299,0.00021917,2]
[365231276,1749558641141,-450.176961,0.00021917,2]
[365231278,1749558641151,-450.176961,0.00021917,2]
[365231281,1749558641162,-450.176961,0.00021917,2]
[365231282,1749558641171,-450.176961,0.00021917,2]
[365231284,1749558641181,-847.418324,0.00021917,2]
[365231286,1749558641191,-847.418324,0.00021917,2]
[365231288,1749558641201,-847.418324,0.00021917,2]
[365231290,1749558641210,-847.418324,0.00021917,2]
[365231292,1749558641219,-460.0,0.00021917,4]
[365231294,1749558641229,-460.0,0.00021917,4]
[365231296,1749558641239,-992.29,0.00021917,4]
[365231298,1749558641249,-507.04127505,0.00021917,4]
[365231300,1749558641258,-151.0,0.00021917,2]
[365231302,1749558641268,-151.0,0.00021917,2]
[365231304,1749558641278,-151.0,0.00021917,2]
[365231306,1749558641287,-151.0,0.00021917,2]
[365231308,1749558641297,-460.0,0.00021917,4]
[365231310,1749558641307,-378.7287796,0.00021917,4]
[365231312,1749558641316,-3345.9,0.00021917,4]
[365231314,1749558641326,-2608.83,0.00021917,4]
[365231316,1749558641336,-3150.63,0.00021917,4]
[365231318,1749558641346,-460.0,0.00021917,4]
[365231320,1749558641355,-461.14,0.00021917,4]
[365231322,1749558641365,-460.0,0.00021917,4]
[365231324,1749558641374,-460.0,0.00021917,4]
[365231326,1749558641384,-1994.97,0.00021917,4]
[365231328,1749558641393,-460.0,0.00021917,4]
[365231330,1749558641402,-460.0,0.00021917,4]
[365231332,1749558641412,-460.0,0.00021917,4]
[365231334,1749558641422,-1966.91,0.00021917,4]
[365231336,1749558641431,-2759.7,0.00021917,4]
[365231338,1749558641441,-460.0,0.00021917,4]
[365231340,1749558641450,-460.0,0.00021917,4]
[365231342,1749558641459,-460.0,0.00021917,4]
[365231344,1749558641468,-151.0,0.00021918,2]
[365231346,1749558641477,-151.0,0.00021918,2]
[365231348,1749558641486,-151.0,0.00021918,2]
[365231350,1749558641497,-151.0,0.00021918,2]
[365231352,1749558641506,-152.185453,0.00021918,2]
[365231354,1749558641517,-970.40782091,0.00021948,2]
[365231356,1749558641527,-1000.0,0.00021948,2]
[365231358,1749558641537,-1000.0,0.00021948,2]
[365231359,1749558641547,-1000.0,0.00021948,2]
[365231362,1749558641557,-1077.1181603,0.00021948,2]
[365231363,1749558641567,-160.0,0.0002196,3]
[365231365,1749558641577,-3439.46512918,0.00022,2]
[365231368,1749558641588,-164.0,0.00022,2]
[365231370,1749558641598,-1726.53400946,0.00022003,6]
[365231371,1749558641607,-254.528299,0.00022004,7]
[365231373,1749558641617,-254.528299,0.00022004,7]
[365231375,1749558641626,-1000.0,0.00022011,2]
[365231377,1749558641636,-420.0,0.00022035,2]
[365231380,1749558641646,-503.4130077,0.00022094,2]
[365231382,1749558641655,-1000.0,0.0002211,2]
[365231384,1749558641665,-1000.0,0.0002211,2]
[365231386,1749558641674,-1726.53400946,0.00022141,6]
[365231387,1749558641683,-360.24165597,0.00022191,4]
[365231389,1749558641693,-460.0,0.00022191,4]
[365231392,1749558641703,-460.0,0.00022191,4]
[365231393,1749558641712,-460.0,0.00022191,4]
[365231395,1749558641722,-723.09,0.00022191,4]
[365231397,1749558641732,-460.0,0.00022191,4]
[365231399,1749558641742,-460.0,0.00022191,4]
[365231401,1749558641752,-460.0,0.00022191,4]
[365231403,1749558641762,-2883.13,0.00022191,4]
[365231406,1749558641772,-460.0,0.00022191,4]
[365231407,1749558641782,-460.0,0.00022191,4]
[365231409,1749558641791,-460.0,0.00022191,4]
[365231412,1749558641802,-460.0,0.00022191,4]
[365231414,1749558641812,-470.19,0.00022191,4]
[365231415,1749558641822,-460.0,0.00022191,4]
[365231418,1749558641832,-460.0,0.00022191,4]
[365231419,1749558641842,-460.0,0.00022191,4]
[365231421,1749558641851,-460.0,0.00022191,4]
[365231423,1749558641862,-460.0,0.00022191,4]
[365231425,1749558641873,-460.0,0.00022191,4]
[365231427,1749558641887,-460.0,0.00022191,4]
[365231429,1749558641896,-575.64708101,0.00022191,4]
[365231439,1749558641986,-460.0,0.00022191,4]
[365231441,1749558641996,-460.0,0.00022191,4]
[365231443,1749558642005,-460.0,0.00022191,4]
[365231445,1749558642015,-460.0,0.00022191,4]
[365231447,1749558642025,-460.0,0.00022191,4]
[365231449,1749558642034,-460.0,0.00022191,4]
[365231451,1749558642043,-460.0,0.00022191,4]
[365231452,1749558642052,-460.0,0.00022191,4]
[365231454,1749558642062,-460.0,0.00022191,4]
[365231457,1749558642072,-460.0,0.00022191,4]
[365231458,1749558642082,-1271.1,0.00022191,4]
[365231460,1749558642092,-460.0,0.00022191,4]
[365231462,1749558642101,-460.0,0.00022191,4]
[365231464,1749558642112,-460.0,0.00022191,4]
[365231467,1749558642122,-460.0,0.00022191,4]
[365231469,1749558642131,-460.0,0.00022191,4]
[365231470,1749558642141,-460.0,0.00022191,4]
[365231473,1749558642151,-460.0,0.00022191,4]
[365231475,1749558642161,-460.0,0.00022191,4]
[365231476,1749558642170,-460.0,0.00022191,4]
[365231478,1749558642180,-460.0,0.00022191,4]
[365231480,1749558642189,-460.0,0.00022191,4]
[365231483,1749558642199,-460.0,0.00022191,4]
[365231484,1749558642211,-460.0,0.00022191,4]
[365231486,1749558642221,-460.0,0.00022191,4]
[365231488,1749558642230,-460.0,0.00022191,4]
[365231490,1749558642240,-460.0,0.00022191,4]
[365231492,1749558642250,-460.0,0.00022191,4]
[365231494,1749558642260,-460.0,0.00022191,4]
[365231496,1749558642269,-460.0,0.00022191,4]
[365231498,1749558642280,-1151.52,0.00022191,4]
[365231500,1749558642290,-460.0,0.00022191,4]
[365231502,1749558642300,-460.0,0.00022191,4]
[365231504,1749558642309,-460.0,0.00022191,4]
[365231506,1749558642318,-460.0,0.00022191,4]
[365231508,1749558642328,-460.0,0.00022191,4]
[365231510,1749558642337,-460.0,0.00022191,4]
[365231512,1749558642346,-339.06466937,0.00022191,4]
[365231514,1749558642356,-300.0,0.00022191,4]
[365231516,1749558642365,-632.11,0.00022191,4]
[365231518,1749558642376,-460.0,0.00022191,4]